bitfinex/quotes_SOLUSD_20241115
["timestamp","ask_amount","ask_price","bid_price","bid_amount"]
[1731653095439,6.74441652,209.0,208.93,4.7862]
[1731653096435,6.74441652,209.0,208.92,7.62789092]
[1731653097467,6.74441652,209.0,208.93,4.7862]
[1731653098459,6.74441652,209.0,208.92,7.62789092]
[1731653099153,20.0,209.01,208.92,7.62789092]
[1731653099563,20.0,209.01,208.93,4.7862]
[1731653099564,7.62789092,209.0,208.93,4.7862]
[1731653102275,7.62789092,208.94,208.87,4.7876]
[1731653102455,7.62789092,208.92,208.87,4.7876]
[1731653102648,7.62789092,208.9,208.87,4.7876]
[1731653103054,7.62789092,208.89,208.87,4.7876]
[1731653103254,7.62789092,208.89,208.82,4.7888]
[1731653104175,7.62789092,208.9,208.83,7.62789092]
[1731653104358,7.62789092,208.9,208.84,4.7883]
[1731653105070,7.62789092,208.87,208.84,4.7883]
[1731653105270,7.62789092,208.85,208.78,7.62789092]
[1731653105451,7.62789092,208.84,208.77,7.62789092]
[1731653106261,7.62789092,208.85,208.78,7.75338092]
[1731653106462,16.1271,208.88,208.81,7.62789092]
[1731653106674,16.1271,208.93,208.83,7.62789092]
[1731653106874,16.1271,208.93,208.84,7.62789092]
[1731653107168,7.62789092,208.91,208.84,7.62789092]
[1731653107877,7.62789092,208.91,208.85,4.7881]
[1731653108590,6.0338,208.95,208.88,7.62789092]
[1731653108758,6.0338,208.95,208.89,7.62789092]
[1731653109076,16.1711,208.98,208.87,7.62789092]
[1731653109077,7.62789092,208.94,208.87,7.62789092]
[1731653109276,7.62789092,208.93,208.86,7.62789092]
[1731653109846,7.62789092,208.92,208.87,4.7876]
[1731653111063,7.62789092,208.92,208.85,7.62789092]
[1731653111451,7.62789092,208.94,208.87,7.62789092]
[1731653111668,7.62789092,208.95,208.88,7.62789092]
[1731653111868,7.62789092,208.96,208.89,7.62789092]
[1731653112058,7.62789092,208.95,208.88,7.62789092]
[1731653112258,7.62789092,208.94,208.88,7.62789092]
[1731653113069,7.62789092,208.95,208.88,7.62789092]
[1731653113260,7.62789092,208.95,208.89,4.7872]
[1731653113457,16.1711,208.98,208.92,7.62789092]
[1731653113757,14.09119092,209.0,208.93,7.62789092]
[1731653113957,7.62789092,208.99,208.92,7.62789092]
[1731653114165,14.09119092,209.0,208.93,7.62789092]
[1731653114365,7.62789092,209.01,208.94,7.62789092]
[1731653114884,23.21489092,209.03,208.96,7.62789092]
[1731653115070,7.62789092,209.02,208.96,7.62789092]
[1731653115379,7.62789092,209.02,208.97,4.7853]
[1731653115585,7.62789092,209.01,208.97,4.7853]
[1731653115763,7.62789092,209.02,208.97,4.7853]
[1731653116079,23.21489092,209.03,208.97,4.7853]
[1731653116455,7.62789092,209.05,208.98,7.62789092]
[1731653116864,15.0085,209.08,209.0,11.90242195]
[1731653117069,11.90242195,209.07,209.0,11.90242195]
[1731653117258,11.90242195,209.07,209.01,4.7844]
[1731653117567,11.90242195,209.06,209.01,4.7844]
[1731653118261,11.90242195,209.07,209.01,4.7844]
[1731653118766,11.90242195,209.06,209.01,4.7844]
[1731653120056,16.99762165,209.1,209.05,11.90242195]
[1731653120278,26.97372195,209.14,209.07,11.90242195]
[1731653120692,11.90242195,209.15,209.08,11.90242195]
[1731653120861,11.90242195,209.17,209.1,11.90242195]
[1731653121186,15.0713,209.19,209.02,15.5736]
[1731653121187,11.90242195,209.15,209.08,11.90242195]
[1731653121683,11.90242195,209.16,209.09,11.90242195]
[1731653121886,11.90242195,209.17,209.1,11.90242195]
[1731653122179,11.90242195,209.19,209.11,11.90242195]
[1731653122394,11.90242195,209.2,209.13,11.90242195]
[1731653123060,11.90242195,209.19,209.12,11.90242195]
[1731653123359,11.90242195,209.2,209.13,11.90242195]
[1731653124089,11.90242195,209.19,209.12,11.90242195]
[1731653125488,11.90242195,209.2,209.13,11.90242195]
[1731653125863,11.90242195,209.21,209.14,11.90242195]
[1731653126266,6.1303,209.27,209.06,0.1]
[1731653126267,4.7786,209.27,209.16,11.90242195]
[1731653126479,11.90242195,209.25,209.18,11.90242195]
[1731653126678,11.90242195,209.24,209.17,11.90242195]
[1731653127566,11.90242195,209.29,209.22,11.90242195]
[1731653127780,11.90242195,209.27,209.2,11.90242195]
[1731653127983,11.90242195,209.27,209.13,0.1]
[1731653127984,11.90242195,209.26,209.19,11.90242195]
[1731653128488,11.90242195,209.27,209.2,11.90242195]
[1731653128994,11.90242195,209.26,209.19,35.67930595]
[1731653129362,11.90242195,209.26,209.19,11.90242195]
[1731653130281,11.90242195,209.27,209.2,11.90242195]
[1731653130663,11.90242195,209.27,209.15,0.1]
[1731653130664,11.90242195,209.28,209.21,11.90242195]
[1731653130862,11.90242195,209.29,209.22,11.90242195]
[1731653131398,11.90242195,209.28,209.21,11.90242195]
[1731653131886,11.90242195,209.29,209.21,11.90242195]
[1731653132285,11.90242195,209.29,209.22,11.90242195]
[1731653132471,11.90242195,209.29,209.16,20.1]
[1731653132472,11.90242195,209.29,209.21,11.90242195]
[1731653132675,11.90242195,209.29,209.22,15.5168]
[1731653132874,11.90242195,209.28,209.22,15.5168]
[1731653133683,11.90242195,209.26,209.19,11.90242195]
[1731653134063,11.90242195,209.28,209.21,11.90242195]
[1731653134474,11.90242195,209.25,209.18,35.67930595]
[1731653134686,11.90242195,209.23,209.17,15.0817]
[1731653135063,11.90242195,209.21,209.17,15.0817]
[1731653135269,11.90242195,209.2,209.17,15.0817]
[1731653135475,11.90242195,209.22,209.15,11.90242195]
[1731653135882,11.90242195,209.21,209.14,11.90242195]
[1731653136565,11.90242195,209.2,209.13,35.80479595]
[1731653136766,11.90242195,209.18,209.12,15.2342]
[1731653137183,11.90242195,209.19,209.12,15.2342]
[1731653137376,11.90242195,209.19,209.12,27.13662195]
[1731653137793,11.90242195,209.2,209.14,11.90242195]
[1731653138087,11.90242195,209.21,209.14,11.90242195]
[1731653138666,11.90242195,209.2,209.13,35.80479595]
[1731653139389,11.90242195,209.21,209.14,11.90242195]
[1731653139583,11.90242195,209.24,209.17,11.90242195]
[1731653139990,11.90242195,209.25,209.18,11.90242195]
[1731653141267,11.90242195,209.26,209.19,23.776884]
[1731653141472,11.90242195,209.27,209.2,11.90242195]
[1731653141879,11.90242195,209.28,209.21,11.90242195]
[1731653143584,11.90242195,209.29,209.22,28.28892195]
[1731653144594,11.90242195,209.26,209.22,16.3865]
[1731653145291,11.90242195,209.25,209.19,23.776884]
[1731653145793,11.90242195,209.25,209.18,11.90242195]
[1731653150268,11.90242195,209.25,209.19,11.90242195]
[1731653150473,11.90242195,209.25,209.17,15.3884]
[1731653150697,11.90242195,209.26,209.19,11.90242195]
[1731653152297,4.7779,209.3,209.17,15.3884]
[1731653152298,11.90242195,209.22,209.17,15.3884]
[1731653152474,11.90242195,209.19,209.12,11.90242195]
[1731653152670,11.90242195,209.18,209.12,11.90242195]
[1731653152880,11.90242195,209.19,209.12,11.90242195]
[1731653153091,11.90242195,209.18,209.11,28.18082195]
[1731653153278,11.90242195,209.19,209.12,11.90242195]
[1731653153482,11.90242195,209.21,209.14,11.90242195]
[1731653153682,11.90242195,209.22,209.15,11.90242195]
[1731653153907,11.90242195,209.24,209.17,11.90242195]
[1731653154202,32.32172195,209.3,209.18,11.90242195]
[1731653154203,11.90242195,209.25,209.18,11.90242195]
[1731653154376,11.90242195,209.24,209.18,23.776884]
[1731653154579,11.90242195,209.26,209.2,11.90242195]
[1731653155005,11.90242195,209.27,209.2,11.90242195]
[1731653155697,11.90242195,209.28,209.21,11.90242195]
[1731653156091,11.90242195,209.27,209.2,11.90242195]
[1731653156992,11.90242195,209.29,209.23,11.90242195]
[1731653157398,11.90242195,209.3,209.23,11.90242195]
[1731653157573,11.90242195,209.31,209.24,11.90242195]
[1731653157978,11.90242195,209.3,209.23,11.90242195]
[1731653158478,11.90242195,209.3,209.24,11.90242195]
[1731653158681,11.90242195,209.28,209.22,23.776884]
[1731653159589,11.90242195,209.29,209.22,35.67930595]
[1731653160502,11.90242195,209.3,209.23,11.90242195]
[1731653160803,11.90242195,209.29,209.22,35.67930595]
[1731653161187,11.90242195,209.25,209.19,11.90242195]
[1731653161399,11.90242195,209.24,209.17,11.90242195]
[1731653161581,11.90242195,209.25,209.18,11.90242195]
[1731653162292,11.90242195,209.26,209.19,11.90242195]
[1731653163114,11.90242195,209.25,209.2,23.776884]
[1731653163411,11.90242195,209.24,209.17,11.90242195]
[1731653163624,11.90242195,209.24,209.18,11.90242195]
[1731653164109,11.90242195,209.25,209.18,11.90242195]
[1731653164300,11.90242195,209.19,209.12,11.90242195]
[1731653164502,11.90242195,209.17,209.11,15.7399]
[1731653166798,11.90242195,209.19,209.12,35.80479595]
[1731653167007,11.90242195,209.2,209.14,11.90242195]
[1731653167304,4.7785,209.27,209.12,11.90242195]
[1731653167305,11.90242195,209.18,209.12,11.90242195]
[1731653167498,11.90242195,209.21,209.14,12.02791195]
[1731653167698,11.90242195,209.22,209.16,11.90242195]
[1731653167900,11.90242195,209.22,209.15,11.90242195]
[1731653168694,11.90242195,209.24,209.17,11.90242195]
[1731653170117,11.90242195,209.23,209.16,11.90242195]
[1731653170318,11.90242195,209.23,209.17,23.776884]
[1731653170820,11.90242195,209.18,209.11,27.64232195]
[1731653171514,11.90242195,209.18,209.12,0.12549]
[1731653172120,11.90242195,209.19,209.12,35.80479595]
[1731653172614,11.90242195,209.19,209.13,11.90242195]
[1731653172818,11.90242195,209.22,209.15,11.90242195]
[1731653176193,11.90242195,209.19,209.12,11.90242195]
[1731653176714,11.90242195,209.2,209.13,11.90242195]
[1731653176900,11.90242195,209.2,209.14,11.90242195]
[1731653177103,11.90242195,209.24,209.17,11.90242195]
[1731653177710,11.90242195,209.25,209.18,11.90242195]
[1731653178197,11.90242195,209.26,209.19,11.90242195]
[1731653179120,19.3840898,209.36,209.12,0.12549]
[1731653179121,11.90242195,209.32,209.25,11.90242195]
[1731653179322,11.90242195,209.31,209.25,11.90242195]
[1731653179725,11.90242195,209.32,209.25,11.90242195]
[1731653180239,11.90242195,209.32,209.26,11.90242195]
[1731653180404,11.90242195,209.33,209.26,11.90242195]
[1731653180716,11.90242195,209.32,209.26,11.90242195]
[1731653180920,11.90242195,209.31,209.25,11.90242195]
[1731653181706,11.90242195,209.32,209.25,11.90242195]
[1731653183213,11.90242195,209.31,209.25,11.90242195]
[1731653184932,11.90242195,209.32,209.25,11.90242195]
[1731653187025,11.90242195,209.31,209.25,11.90242195]
[1731653187431,20.5352,209.35,209.24,11.90242195]
[1731653187609,11.90242195,209.26,209.21,20.0]
[1731653187815,11.90242195,209.26,209.2,11.90242195]
[1731653188024,11.90242195,209.25,209.19,11.90242195]
[1731653188713,11.90242195,209.26,209.2,11.90242195]
[1731653188912,11.90242195,209.25,209.19,11.90242195]
[1731653189651,11.90242195,209.28,209.21,11.90242195]
[1731653190008,20.0,209.34,209.23,11.90242195]
[1731653190214,11.90242195,209.32,209.25,11.90242195]
[1731653190511,11.90242195,209.3,209.24,11.90242195]
[1731653190718,11.90242195,209.31,209.24,11.90242195]
[1731653190910,11.90242195,209.31,209.25,11.90242195]
[1731653191108,11.90242195,209.32,209.26,11.90242195]
[1731653192522,11.90242195,209.31,209.25,11.90242195]
[1731653194117,11.90242195,209.29,209.23,11.90242195]
[1731653194440,24.7769,209.34,209.17,23.776884]
[1731653194441,11.90242195,209.27,209.21,23.776884]
[1731653194618,11.90242195,209.27,209.21,11.90242195]
[1731653195130,11.90242195,209.28,209.21,11.90242195]
[1731653197437,11.90242195,209.28,209.22,11.90242195]
[1731653197935,11.90242195,209.29,209.23,11.90242195]
[1731653198518,20.0,209.34,209.25,11.90242195]
[1731653198841,11.90242195,209.33,209.26,11.90242195]
[1731653199018,11.90242195,209.32,209.26,11.90242195]
[1731653199216,11.90242195,209.31,209.25,11.90242195]
[1731653200331,11.90242195,209.32,209.25,11.90242195]
[1731653200515,11.90242195,209.34,209.27,11.90242195]
[1731653200931,11.90242195,209.33,209.26,11.90242195]
[1731653202826,11.90242195,209.34,209.27,11.90242195]
[1731653203743,11.90242195,209.33,209.26,11.90242195]
[1731653204824,11.90242195,209.32,209.26,11.90242195]
[1731653205442,15.7584,209.35,209.22,20.0]
[1731653205443,11.90242195,209.28,209.22,20.0]
[1731653205623,11.90242195,209.28,209.22,31.90242195]
[1731653205830,11.90242195,209.3,209.24,11.90242195]
[1731653206145,11.90242195,209.29,209.23,11.90242195]
[1731653206527,11.90242195,209.3,209.24,11.90242195]
[1731653207341,11.90242195,209.29,209.23,11.90242195]
[1731653210740,11.90242195,209.33,209.26,11.90242195]
[1731653211133,15.7584,209.35,209.26,11.90242195]
[1731653211336,0.4817188,209.4,209.34,11.90242195]
[1731653211641,12.38414075,209.4,209.33,11.90242195]
[1731653211846,11.90242195,209.38,209.33,20.0]
[1731653212227,11.90242195,209.39,209.33,20.0]
[1731653212837,10.95508372,209.39,209.33,20.0]
[1731653213242,11.90242195,209.38,209.33,20.0]
[1731653213444,11.90242195,209.39,209.33,20.0]
[1731653214149,11.90242195,209.39,209.33,11.90242195]
[1731653214338,12.38414075,209.4,209.33,11.90242195]
[1731653214752,11.90242195,209.39,209.33,11.90242195]
[1731653216255,11.90242195,209.35,209.29,11.90242195]
[1731653216555,11.90242195,209.36,209.29,11.90242195]
[1731653219652,11.90242195,209.35,209.28,31.90242195]
[1731653220159,11.90242195,209.34,209.28,20.0]
[1731653220352,11.90242195,209.36,209.29,12.02791195]
[1731653221343,11.40242195,209.36,209.29,12.02791195]
[1731653221542,11.90242195,209.33,209.28,20.0]
[1731653221749,11.90242195,209.32,209.25,11.90242195]
[1731653222057,11.90242195,209.33,209.26,11.90242195]
[1731653222840,11.90242195,209.34,209.27,12.02791195]
[1731653223046,11.90242195,209.35,209.29,11.90242195]
[1731653225055,11.90242195,209.32,209.27,20.12549]
[1731653225269,11.90242195,209.32,209.25,11.90242195]
[1731653225561,11.90242195,209.34,209.27,12.02791195]
[1731653225740,11.90242195,209.36,209.29,11.90242195]
[1731653225944,11.90242195,209.35,209.28,11.90242195]
[1731653226251,11.90242195,209.36,209.29,11.90242195]
[1731653226650,0.4817188,209.4,209.29,11.90242195]
[1731653226651,0.4817188,209.4,209.36,23.776884]
[1731653226864,0.4817188,209.4,209.38,11.90242195]
[1731653227050,0.4817188,209.4,209.37,11.90242195]
[1731653228444,0.4817188,209.4,209.36,35.67930595]
[1731653228952,0.4817188,209.4,209.37,11.90242195]
[1731653229268,0.4817188,209.4,209.37,19.2962057]
[1731653230665,0.4817188,209.4,209.37,11.90242195]
[1731653231055,0.4817188,209.4,209.39,23.776884]
[1731653231254,0.4817188,209.4,209.38,11.90242195]
[1731653231451,0.4817188,209.4,209.39,35.67930595]
[1731653231649,0.4817188,209.4,209.39,55.67930595]
[1731653237971,0.4817188,209.4,209.39,69.7160983]
[1731653238853,0.4817188,209.4,209.39,65.39585285]
[1731653239264,0.12549,209.49,209.44,20.0]
[1731653239464,0.12549,209.49,209.48,51.3590605]
[1731653239977,0.12549,209.49,209.48,23.776884]
[1731653240270,0.12549,209.49,209.48,51.3590605]
[1731653240859,0.4817188,209.61,209.5,43.776884]
[1731653241062,0.4817188,209.61,209.56,11.83628588]
[1731653241467,0.4817188,209.61,209.57,11.83628588]
[1731653241653,0.4817188,209.61,209.6,11.83628588]
[1731653242250,0.4817188,209.61,209.6,35.61316988]
[1731653242663,0.4817188,209.61,209.6,55.61316988]
[1731653247074,15.4772,209.8,209.61,43.776884]
[1731653247276,11.83628588,209.77,209.7,11.83628588]
[1731653247873,11.83628588,209.76,209.69,11.83628588]
[1731653248358,11.83628588,209.77,209.7,11.83628588]
[1731653248549,11.83628588,209.78,209.71,11.83628588]
[1731653250582,11.83628588,209.79,209.73,11.83628588]
[1731653251165,11.83628588,209.79,209.72,11.83628588]
[1731653252484,11.83628588,209.77,209.71,20.0]
[1731653252775,11.83628588,209.76,209.71,20.0]
[1731653253168,11.83628588,209.76,209.7,20.0]
[1731653253477,11.83628588,209.75,209.69,20.0]
[1731653254565,11.83628588,209.72,209.65,27.31348588]
[1731653254769,11.83628588,209.7,209.63,11.83628588]
[1731653254975,11.83628588,209.69,209.62,11.83628588]
[1731653255157,11.83628588,209.7,209.63,11.96177588]
[1731653255681,11.83628588,209.69,209.63,0.12549]
[1731653255863,11.83628588,209.67,209.6,11.83628588]
[1731653256064,11.83628588,209.67,209.61,20.0]
[1731653256775,11.83628588,209.66,209.62,0.12549]
[1731653257274,11.83628588,209.66,209.6,20.0]
[1731653257467,11.83628588,209.65,209.6,20.0]
[1731653257664,23.837634,209.77,209.6,20.0]
[1731653257665,11.83628588,209.67,209.61,0.12549]
[1731653257857,11.83628588,209.68,209.62,20.0]
[1731653258063,11.83628588,209.71,209.64,11.83628588]
[1731653258470,11.83628588,209.71,209.65,20.0]
[1731653259865,11.33628588,209.71,209.65,20.0]
[1731653260291,11.83628588,209.72,209.65,31.83628588]
[1731653260991,11.83628588,209.71,209.65,20.0]
[1731653261164,11.83628588,209.7,209.65,20.0]
[1731653261359,11.83628588,209.7,209.59,21.4349]
[1731653261360,11.83628588,209.66,209.6,20.0]
[1731653261871,11.83628588,209.68,209.61,11.96177588]
[1731653262087,11.83628588,209.71,209.64,11.83628588]
[1731653262582,11.83628588,209.72,209.65,11.83628588]
[1731653262966,11.83628588,209.71,209.64,11.83628588]
[1731653263178,11.83628588,209.71,209.65,20.0]
[1731653263484,11.83628588,209.69,209.65,20.0]
[1731653264089,11.83628588,209.7,209.64,20.0]
[1731653264387,11.83628588,209.69,209.64,20.0]
[1731653264563,11.83628588,209.67,209.61,11.96177588]
[1731653264769,11.83628588,209.67,209.61,43.902374]
[1731653265384,11.83628588,209.67,209.61,43.776884]
[1731653265767,11.83628588,209.67,209.62,0.12549]
[1731653266576,11.83628588,209.68,209.62,11.96177588]
[1731653266774,11.83628588,209.69,209.63,11.83628588]
[1731653267173,11.83628588,209.68,209.64,20.0]
[1731653267580,11.83628588,209.68,209.63,20.0]
[1731653267977,11.83628588,209.67,209.62,20.12549]
[1731653268576,11.83628588,209.68,209.62,11.88549]
[1731653269177,11.83628588,209.67,209.62,11.88549]
[1731653269380,11.83628588,209.67,209.6,11.83628588]
[1731653269585,11.83628588,209.68,209.61,35.61316988]
[1731653270580,11.83628588,209.69,209.62,31.83628588]
[1731653270779,11.83628588,209.72,209.65,11.83628588]
[1731653272271,0.06075,209.79,209.64,11.83628588]
[1731653272272,11.83628588,209.71,209.64,11.83628588]
[1731653272496,11.83628588,209.69,209.62,11.83628588]
[1731653272797,11.83628588,209.68,209.63,20.0]
[1731653273299,11.83628588,209.68,209.62,43.902374]
[1731653276902,11.83628588,209.69,209.62,55.73865988]
[1731653277485,11.83628588,209.68,209.62,43.902374]
[1731653277799,4.7673,209.76,209.62,43.902374]
[1731653277800,4.7673,209.76,209.62,55.73865988]
[1731653277995,11.83628588,209.68,209.62,55.73865988]
[1731653278206,11.83628588,209.69,209.63,11.83628588]
[1731653278579,0.06075,209.79,209.62,43.902374]
[1731653278580,11.83628588,209.71,209.64,11.83628588]
[1731653278786,11.83628588,209.72,209.65,11.83628588]
[1731653279496,11.83628588,209.71,209.64,11.83628588]
[1731653279704,11.83628588,209.71,209.65,20.0]
[1731653280214,11.83628588,209.72,209.65,11.83628588]
[1731653280882,11.83628588,209.73,209.67,20.0]
[1731653281589,11.83628588,209.72,209.66,20.0]
[1731653281783,11.83628588,209.73,209.66,11.83628588]
[1731653281985,11.83628588,209.72,209.66,11.83628588]
[1731653282282,11.83628588,209.72,209.66,20.0]
[1731653282496,11.83628588,209.7,209.63,11.83628588]
[1731653282793,11.83628588,209.7,209.64,55.61316988]
[1731653282987,11.83628588,209.7,209.64,43.776884]
[1731653283803,11.83628588,209.7,209.64,20.0]
[1731653284006,11.83628588,209.71,209.64,11.83628588]
[1731653284210,11.83628588,209.71,209.65,20.0]
[1731653285104,11.83628588,209.72,209.65,31.83628588]
[1731653285291,11.83628588,209.75,209.68,11.83628588]
[1731653285499,11.83628588,209.77,209.7,11.83628588]
[1731653285698,11.83628588,209.78,209.71,11.83628588]
[1731653286225,11.83628588,209.79,209.72,11.83628588]
[1731653286405,11.83628588,209.78,209.71,11.83628588]
[1731653286800,7.56412214,209.78,209.71,7.56412214]
[1731653287317,15.4772,209.8,209.71,7.56412214]
[1731653287489,15.4772,209.8,209.73,7.56412214]
[1731653287688,0.4817188,209.83,209.74,7.56412214]
[1731653287909,7.56412214,209.81,209.74,7.56412214]
[1731653288905,11.81594226,209.81,209.74,11.81594226]
[1731653289096,11.81594226,209.82,209.75,11.81594226]
[1731653289295,0.4817188,209.83,209.78,11.81594226]
[1731653290100,0.4817188,209.83,209.79,20.0]
[1731653290713,0.4817188,209.83,209.78,20.0]
[1731653291113,0.4817188,209.83,209.79,20.0]
[1731653291799,11.81594226,209.82,209.75,27.02094226]
[1731653292115,11.81594226,209.78,209.71,35.59282626]
[1731653292319,0.4817188,209.83,209.73,11.81594226]
[1731653292506,11.81594226,209.79,209.72,11.81594226]
[1731653293209,11.81594226,209.82,209.75,11.81594226]
[1731653293418,11.81594226,209.81,209.75,11.81594226]
[1731653294816,0.4817188,209.83,209.77,11.81594226]
[1731653295012,12.29766106,209.83,209.76,11.81594226]
[1731653295314,12.29766106,209.83,209.77,20.0]
[1731653295497,11.81594226,209.82,209.77,20.0]
[1731653295700,12.29766106,209.83,209.77,20.0]
[1731653295900,0.4817188,209.83,209.77,20.0]
[1731653296103,12.29766106,209.83,209.77,20.0]
[1731653296803,11.81594226,209.82,209.77,20.0]
[1731653297416,12.29766106,209.83,209.77,20.0]
[1731653297908,11.81594226,209.79,209.73,43.902374]
[1731653298111,11.81594226,209.77,209.72,20.0]
[1731653298308,11.81594226,209.77,209.71,20.0]
[1731653298814,11.81594226,209.78,209.71,31.81594226]
[1731653299211,11.81594226,209.81,209.74,11.81594226]
[1731653299601,11.81594226,209.82,209.75,11.81594226]
[1731653300119,11.81594226,209.82,209.76,11.81594226]
[1731653301320,11.81594226,209.81,209.74,11.81594226]
[1731653301505,11.81594226,209.8,209.74,11.81594226]
[1731653301710,11.81594226,209.78,209.71,31.81594226]
[1731653302020,11.81594226,209.77,209.71,20.0]
[1731653302606,11.81594226,209.76,209.71,20.0]
[1731653303414,11.81594226,209.77,209.71,20.0]
[1731653303617,11.81594226,209.78,209.71,31.81594226]
[1731653304009,11.81594226,209.8,209.73,11.81594226]
[1731653304210,11.81594226,209.81,209.74,11.81594226]
[1731653304414,11.81594226,209.8,209.73,11.81594226]
[1731653304722,11.81594226,209.79,209.73,11.81594226]
[1731653305098,11.81594226,209.78,209.71,31.81594226]
[1731653305317,11.81594226,209.78,209.72,11.81594226]
[1731653305822,11.81594226,209.75,209.68,11.81594226]
[1731653306317,11.81594226,209.72,209.65,26.94454226]
[1731653306521,11.81594226,209.69,209.62,17.91094226]
[1731653306906,11.81594226,209.69,209.62,11.81594226]
[1731653307226,11.81594226,209.68,209.62,11.81594226]
[1731653308405,11.81594226,209.68,209.61,11.81594226]
[1731653308598,11.81594226,209.64,209.57,25.3525053]
[1731653308798,11.81594226,209.63,209.56,11.81594226]
[1731653309001,11.81594226,209.62,209.55,27.00604226]
[1731653309198,11.81594226,209.63,209.56,11.81594226]
[1731653309401,11.81594226,209.63,209.55,15.1901]
[1731653309402,11.81594226,209.63,209.57,11.81594226]
[1731653309830,11.81594226,209.65,209.58,11.81594226]
[1731653310124,11.81594226,209.65,209.59,20.0]
[1731653310341,21.4206,209.71,209.59,11.81594226]
[1731653310342,11.81594226,209.66,209.59,11.81594226]
[1731653310511,11.81594226,209.67,209.61,11.81594226]
[1731653310824,11.81594226,209.65,209.59,11.81594226]
[1731653311021,11.81594226,209.65,209.58,31.81594226]
[1731653312608,11.81594226,209.65,209.59,11.81594226]
[1731653313033,11.81594226,209.65,209.58,31.81594226]
[1731653313324,11.81594226,209.65,209.55,7.39336644]
[1731653313529,11.81594226,209.59,209.52,18.21344226]
[1731653315035,11.81594226,209.59,209.53,20.0]
[1731653315331,11.91594226,209.69,209.52,20.0]
[1731653315332,11.81594226,209.56,209.52,20.0]
[1731653315629,11.81594226,209.54,209.47,11.81594226]
[1731653315817,11.81594226,209.53,209.46,32.53574845]
[1731653316135,11.81594226,209.54,209.47,11.81594226]
[1731653316522,11.81594226,209.53,209.46,17.84624226]
[1731653316831,11.81594226,209.51,209.44,28.08104226]
[1731653317239,11.81594226,209.54,209.47,11.81594226]
[1731653317406,11.81594226,209.55,209.48,11.81594226]
[1731653317731,11.81594226,209.53,209.46,11.81594226]
[1731653317910,11.81594226,209.52,209.46,11.81594226]
[1731653318105,11.81594226,209.52,209.45,11.81594226]
[1731653318408,11.81594226,209.5,209.43,11.81594226]
[1731653318810,11.81594226,209.49,209.42,11.81594226]
[1731653319328,11.81594226,209.5,209.43,11.81594226]
[1731653319629,11.81594226,209.49,209.42,11.81594226]
[1731653320040,11.81594226,209.49,209.43,11.81594226]
[1731653320333,11.81594226,209.5,209.44,23.776884]
[1731653320516,11.81594226,209.51,209.44,11.81594226]
[1731653321734,11.81594226,209.51,209.45,35.59282626]
[1731653321935,11.81594226,209.54,209.47,11.81594226]
[1731653323024,11.81594226,209.53,209.46,11.81594226]
[1731653323214,11.81594226,209.52,209.45,11.81594226]
[1731653323409,11.81594226,209.51,209.45,23.776884]
[1731653323620,11.81594226,209.51,209.46,20.0]
[1731653324020,11.81594226,209.51,209.45,20.0]
[1731653324320,11.81594226,209.53,209.46,11.81594226]
[1731653324730,11.81594226,209.52,209.46,20.0]
[1731653325317,11.81594226,209.53,209.46,11.81594226]
[1731653326434,11.81594226,209.55,209.48,11.81594226]
[1731653326628,11.81594226,209.58,209.51,11.81594226]
[1731653327028,21.2998,209.62,209.5,35.59282626]
[1731653327029,11.81594226,209.57,209.5,35.59282626]
[1731653327216,11.81594226,209.56,209.5,23.776884]
[1731653327418,11.81594226,209.58,209.52,11.81594226]
[1731653327619,11.81594226,209.59,209.52,11.81594226]
[1731653328221,11.81594226,209.6,209.53,11.81594226]
[1731653328430,11.81594226,209.6,209.54,11.81594226]
[1731653328637,11.81594226,209.6,209.53,11.81594226]
[1731653328827,11.81594226,209.59,209.52,11.81594226]
[1731653329226,11.81594226,209.58,209.52,11.81594226]
[1731653329533,11.81594226,209.58,209.52,20.0]
[1731653330244,11.81594226,209.55,209.5,23.776884]
[1731653330444,11.81594226,209.56,209.5,23.776884]
[1731653330919,11.81594226,209.55,209.5,20.0]
[1731653331324,11.81594226,209.52,209.46,11.81594226]
[1731653331518,11.81594226,209.51,209.45,11.81594226]
[1731653331723,11.81594226,209.51,209.44,11.81594226]
[1731653332139,4.7721,209.55,209.43,26.85114226]
[1731653332140,11.81594226,209.5,209.43,26.85114226]
[1731653332452,11.81594226,209.52,209.46,11.81594226]
[1731653332623,11.81594226,209.51,209.45,11.81594226]
[1731653334335,4.7721,209.55,209.43,15.0352]
[1731653334336,11.81594226,209.5,209.44,0.12549]
[1731653334537,11.81594226,209.49,209.44,20.0]
[1731653334739,11.81594226,209.45,209.4,7.43925166]
[1731653335053,11.81594226,209.44,209.39,0.12549]
[1731653335232,11.81594226,209.44,209.35,6.5564]
[1731653335233,11.81594226,209.44,209.37,11.81594226]
[1731653335557,11.81594226,209.43,209.36,11.81594226]
[1731653335725,11.81594226,209.41,209.35,18.37234226]